[Event "Titled Tuesday Blitz March 14 Early 2023"]
[White "Nguyen, Ngoc Truong Son"]
[Black "Erigaisi Arjun"]
[WhiteFideId "12401110"]
[BlackFideId "35009192"]
[WhiteElo "2571"]
[BlackElo "2737"]
[Result "0-1"]
[Round "05"]
[TimeControl "180+2"]
[Date "2023.03.14"]
[WhiteClock "0:00:03"]
[BlackClock "0:00:04"]

1. d4 {[%clk 0:03:00]}  Nf6 {[%clk 0:02:52]} 2. c4 {[%clk 0:02:59]}  e6 {[%clk 0:02:52]} 3. Nc3 {[%clk 0:02:59]}  d5 {[%clk 0:02:49]} 4. Nf3 {[%clk 0:02:57]}  a6 {[%clk 0:02:45]} 5. cxd5 {[%clk 0:02:54]}  exd5 {[%clk 0:02:46]} 6. Bf4 {[%clk 0:02:49]}  Bd6 {[%clk 0:02:34]} 7. Bg3 {[%clk 0:02:47]}  O-O {[%clk 0:02:31]} 8. e3 {[%clk 0:02:47]}  Bf5 {[%clk 0:02:31]} 9. Qb3 {[%clk 0:02:40]}  Nc6 {[%clk 0:02:27]} 10. Rc1 {[%clk 0:02:17]}  Re8 {[%clk 0:02:14]} 11. Be2 {[%clk 0:02:16]}  Na5 {[%clk 0:01:55]} 12. Qa4 {[%clk 0:02:03]}  Bxg3 {[%clk 0:01:51]} 13. hxg3 {[%clk 0:02:04]}  c6 {[%clk 0:01:52]} 14. O-O {[%clk 0:01:53]}  Bg4 {[%clk 0:01:32]} 15. Qb4 {[%clk 0:01:45]}  Bxf3 {[%clk 0:01:25]} 16. gxf3 {[%clk 0:01:43]}  b5 {[%clk 0:01:13]} 17. b3 {[%clk 0:01:20]}  Nb7 {[%clk 0:01:12]} 18. Nd1 {[%clk 0:01:20]}  a5 {[%clk 0:00:57]} 19. Qd2 {[%clk 0:01:20]}  Rc8 {[%clk 0:00:58]} 20. Nb2 {[%clk 0:01:19]}  Qd6 {[%clk 0:00:50]} 21. Kg2 {[%clk 0:01:15]}  h5 {[%clk 0:00:46]} 22. Rh1 {[%clk 0:01:14]}  g6 {[%clk 0:00:46]} 23. Nd3 {[%clk 0:01:12]}  Nd7 {[%clk 0:00:46]} 24. Rc2 {[%clk 0:01:08]}  Kg7 {[%clk 0:00:39]} 25. Qc1 {[%clk 0:00:49]}  b4 {[%clk 0:00:34]} 26. f4 {[%clk 0:00:41]}  Qe6 {[%clk 0:00:21]} 27. f5 {[%clk 0:00:33]}  Qe4+ {[%clk 0:00:18]} 28. Kg1 {[%clk 0:00:33]}  Qxf5 {[%clk 0:00:17]} 29. Rxc6 {[%clk 0:00:32]}  Nd6 {[%clk 0:00:18]} 30. Rh4 {[%clk 0:00:23]}  Nf6 {[%clk 0:00:13]} 31. Rf4 {[%clk 0:00:20]}  Rxc6 {[%clk 0:00:06]} 32. Qxc6 {[%clk 0:00:21]}  Qd7 {[%clk 0:00:07]} 33. Qa6 {[%clk 0:00:16]}  g5 {[%clk 0:00:06]} 34. Rxf6 {[%clk 0:00:15]}  Kxf6 {[%clk 0:00:07]} 35. Nc5 {[%clk 0:00:13]}  Qe7 {[%clk 0:00:06]} 36. Qxa5 {[%clk 0:00:11]}  Ne4 {[%clk 0:00:06]} 37. Qxb4 {[%clk 0:00:10]}  Nxf2 {[%clk 0:00:06]} 38. Bb5 {[%clk 0:00:03]}  Qxe3 {[%clk 0:00:04]} 39. Nd7+ {[%clk 0:00:03]}  Kg7 {[%clk 0:00:04]} 0-1


[Site "https://www.chess.com"]

[Event "Titled Tuesday Blitz March 14 Early 2023"]
[White "Sarana, Alexey"]
[Black "Xu, Xiangyu"]
[WhiteFideId "24133795"]
[BlackFideId "8608288"]
[WhiteElo "2714"]
[BlackElo "2477"]
[Result "1/2-1/2"]
[Round "05"]
[TimeControl "180+2"]
[Date "2023.03.14"]
[WhiteClock "0:00:06"]
[BlackClock "0:00:06"]

1. c4 {[%clk 0:02:54]}  e6 {[%clk 0:02:57]} 2. d4 {[%clk 0:02:53]}  Nf6 {[%clk 0:02:57]} 3. Nc3 {[%clk 0:02:53]}  Bb4 {[%clk 0:02:57]} 4. e3 {[%clk 0:02:53]}  O-O {[%clk 0:02:56]} 5. Bd3 {[%clk 0:02:53]}  d5 {[%clk 0:02:57]} 6. a3 {[%clk 0:02:54]}  Bxc3+ {[%clk 0:02:57]} 7. bxc3 {[%clk 0:02:55]}  dxc4 {[%clk 0:02:57]} 8. Bxc4 {[%clk 0:02:56]}  c5 {[%clk 0:02:57]} 9. Bd3 {[%clk 0:02:56]}  Qc7 {[%clk 0:02:56]} 10. Bb2 {[%clk 0:02:55]}  b6 {[%clk 0:02:47]} 11. e4 {[%clk 0:02:54]}  cxd4 {[%clk 0:02:23]} 12. cxd4 {[%clk 0:02:54]}  Ba6 {[%clk 0:02:22]} 13. Ne2 {[%clk 0:02:49]}  Bxd3 {[%clk 0:02:08]} 14. Qxd3 {[%clk 0:02:50]}  Qb7 {[%clk 0:02:08]} 15. d5 {[%clk 0:02:50]}  Nbd7 {[%clk 0:02:08]} 16. dxe6 {[%clk 0:02:14]}  Nc5 {[%clk 0:01:59]} 17. Qe3 {[%clk 0:02:13]}  Qxe4 {[%clk 0:01:53]} 18. Bxf6 {[%clk 0:02:03]}  Qxe3 {[%clk 0:01:45]} 19. fxe3 {[%clk 0:02:04]}  gxf6 {[%clk 0:01:46]} 20. exf7+ {[%clk 0:02:04]}  Rxf7 {[%clk 0:01:47]} 21. Nf4 {[%clk 0:01:59]}  Re8 {[%clk 0:01:43]} 22. Kf2 {[%clk 0:01:57]}  Ne4+ {[%clk 0:01:39]} 23. Ke2 {[%clk 0:01:53]}  Rd7 {[%clk 0:01:24]} 24. Rhc1 {[%clk 0:01:32]}  Rd2+ {[%clk 0:01:23]} 25. Kf3 {[%clk 0:01:32]}  f5 {[%clk 0:01:08]} 26. Nh3 {[%clk 0:01:24]}  Nf6 {[%clk 0:00:40]} 27. Rd1 {[%clk 0:01:14]}  Rb2 {[%clk 0:00:36]} 28. Rdb1 {[%clk 0:01:09]}  Rxb1 {[%clk 0:00:34]} 29. Rxb1 {[%clk 0:01:10]}  Ng4 {[%clk 0:00:33]} 30. Rb3 {[%clk 0:01:06]}  Re4 {[%clk 0:00:25]} 31. Rc3 {[%clk 0:00:30]}  Nxh2+ {[%clk 0:00:24]} 32. Ke2 {[%clk 0:00:29]}  Ng4 {[%clk 0:00:24]} 33. Ng5 {[%clk 0:00:28]}  Re7 {[%clk 0:00:23]} 34. Kf3 {[%clk 0:00:28]}  h6 {[%clk 0:00:22]} 35. Nh3 {[%clk 0:00:28]}  Kg7 {[%clk 0:00:21]} 36. Nf4 {[%clk 0:00:29]}  Rd7 {[%clk 0:00:19]} 37. a4 {[%clk 0:00:25]}  Rd2 {[%clk 0:00:18]} 38. Rc7+ {[%clk 0:00:23]}  Kf6 {[%clk 0:00:17]} 39. Rc6+ {[%clk 0:00:22]}  Ke7 {[%clk 0:00:16]} 40. Rc7+ {[%clk 0:00:23]}  Kd6 {[%clk 0:00:16]} 41. Rxa7 {[%clk 0:00:22]}  Rf2+ {[%clk 0:00:16]} 42. Kg3 {[%clk 0:00:23]}  Rb2 {[%clk 0:00:15]} 43. e4 {[%clk 0:00:16]}  Rb3+ {[%clk 0:00:15]} 44. Kh4 {[%clk 0:00:16]}  Rb4 {[%clk 0:00:15]} 45. Ra6 {[%clk 0:00:16]}  Rxe4 {[%clk 0:00:15]} 46. Rxb6+ {[%clk 0:00:16]}  Kd7 {[%clk 0:00:09]} 47. g3 {[%clk 0:00:12]}  Rxa4 {[%clk 0:00:09]} 48. Rb5 {[%clk 0:00:13]}  Ra1 {[%clk 0:00:08]} 49. Kh5 {[%clk 0:00:12]}  Rh1+ {[%clk 0:00:05]} 50. Kg6 {[%clk 0:00:12]}  Rg1 {[%clk 0:00:06]} 51. Rb3 {[%clk 0:00:12]}  Ne5+ {[%clk 0:00:04]} 52. Kxf5 {[%clk 0:00:12]}  Nc4 {[%clk 0:00:04]} 53. Kf6 {[%clk 0:00:10]}  Nd6 {[%clk 0:00:04]} 54. Rd3 {[%clk 0:00:11]}  Rxg3 {[%clk 0:00:04]} 55. Rd4 {[%clk 0:00:06]}  Kc6 {[%clk 0:00:04]} 56. Ra4 {[%clk 0:00:05]}  Rg4 {[%clk 0:00:03]} 57. Ra6+ {[%clk 0:00:05]}  Kb7 {[%clk 0:00:04]} 58. Rxd6 {[%clk 0:00:05]}  Rxf4+ {[%clk 0:00:04]} 59. Ke5 {[%clk 0:00:06]}  Rc4 {[%clk 0:00:05]} 60. Rxh6 {[%clk 0:00:06]}  Rc6 {[%clk 0:00:05]} 61. Rxc6 {[%clk 0:00:06]}  Kxc6 {[%clk 0:00:06]} 1/2-1/2


[Site "https://www.chess.com"]

[Event "Titled Tuesday Blitz March 14 Early 2023"]
[White "Talibov, Shiroghlan"]
[Black "Bluebaum, Matthias"]
[WhiteFideId "13429078"]
[BlackFideId "24651516"]
[WhiteElo "2218"]
[BlackElo "2638"]
[Result "0-1"]
[Round "05"]
[TimeControl "180+2"]
[Date "2023.03.14"]
[WhiteClock "0:00:02"]
[BlackClock "0:00:29"]

1. e4 {[%clk 0:02:57]}  e6 {[%clk 0:03:00]} 2. d4 {[%clk 0:02:56]}  d5 {[%clk 0:03:00]} 3. e5 {[%clk 0:02:55]}  c5 {[%clk 0:03:01]} 4. c3 {[%clk 0:02:53]}  Nc6 {[%clk 0:03:02]} 5. Nf3 {[%clk 0:02:53]}  Nge7 {[%clk 0:03:02]} 6. a3 {[%clk 0:02:50]}  Nf5 {[%clk 0:03:02]} 7. b4 {[%clk 0:02:23]}  cxd4 {[%clk 0:03:02]} 8. cxd4 {[%clk 0:02:23]}  Bd7 {[%clk 0:03:02]} 9. Nc3 {[%clk 0:02:20]}  Rc8 {[%clk 0:02:54]} 10. Bb2 {[%clk 0:02:16]}  Be7 {[%clk 0:02:35]} 11. Be2 {[%clk 0:02:13]}  O-O {[%clk 0:02:28]} 12. O-O {[%clk 0:02:09]}  f6 {[%clk 0:02:28]} 13. exf6 {[%clk 0:01:58]}  Bxf6 {[%clk 0:02:29]} 14. Bd3 {[%clk 0:01:15]}  Ncxd4 {[%clk 0:02:23]} 15. Nxd4 {[%clk 0:01:14]}  Bxd4 {[%clk 0:02:11]} 16. Bxf5 {[%clk 0:00:56]}  Bxc3 {[%clk 0:02:11]} 17. Bxc3 {[%clk 0:00:56]}  Rxc3 {[%clk 0:02:10]} 18. Qd2 {[%clk 0:00:40]}  Qf6 {[%clk 0:02:04]} 19. Bd3 {[%clk 0:00:33]}  Rfc8 {[%clk 0:01:43]} 20. Rfe1 {[%clk 0:00:22]}  h6 {[%clk 0:01:33]} 21. h3 {[%clk 0:00:21]}  a6 {[%clk 0:01:33]} 22. a4 {[%clk 0:00:19]}  Rb3 {[%clk 0:01:29]} 23. b5 {[%clk 0:00:17]}  axb5 {[%clk 0:01:28]} 24. axb5 {[%clk 0:00:17]}  Bxb5 {[%clk 0:01:28]} 25. Bxb5 {[%clk 0:00:18]}  Rxb5 {[%clk 0:01:29]} 26. Qe2 {[%clk 0:00:18]}  Rb6 {[%clk 0:01:29]} 27. Rab1 {[%clk 0:00:16]}  Rcc6 {[%clk 0:01:26]} 28. Ra1 {[%clk 0:00:16]}  Ra6 {[%clk 0:01:18]} 29. Rab1 {[%clk 0:00:16]}  Rab6 {[%clk 0:01:05]} 30. Ra1 {[%clk 0:00:16]}  Rb2 {[%clk 0:01:06]} 31. Ra8+ {[%clk 0:00:15]}  Kh7 {[%clk 0:01:07]} 32. Qd3+ {[%clk 0:00:12]}  Qf5 {[%clk 0:01:07]} 33. Qg3 {[%clk 0:00:11]}  Rc3 {[%clk 0:01:02]} 34. Re3 {[%clk 0:00:07]}  d4 {[%clk 0:01:01]} 35. Rxc3 {[%clk 0:00:05]}  dxc3 {[%clk 0:01:02]} 36. Rc8 {[%clk 0:00:05]}  c2 {[%clk 0:00:59]} 37. Kh2 {[%clk 0:00:05]}  b5 {[%clk 0:00:34]} 38. Qb8 {[%clk 0:00:02]}  Rb1 {[%clk 0:00:28]} 39. Rh8+ {[%clk 0:00:01]}  Kg6 {[%clk 0:00:28]} 40. Qe8+ {[%clk 0:00:01]}  Qf7 {[%clk 0:00:28]} 41. Qc6 {[%clk 0:00:02]}  Qf4+ {[%clk 0:00:28]} 42. g3 {[%clk 0:00:02]}  Qxf2+ {[%clk 0:00:29]} 0-1


[Site "https://www.chess.com"]

[Event "Titled Tuesday Blitz March 14 Early 2023"]
[White "Molina, Roberto Junio Brito"]
[Black "Dubov, Daniil"]
[WhiteFideId "2109450"]
[BlackFideId "24126055"]
[WhiteElo "2376"]
[BlackElo "2802"]
[Result "0-1"]
[Round "05"]
[TimeControl "180+2"]
[Date "2023.03.14"]
[WhiteClock "0:00:10"]
[BlackClock "0:00:07"]

1. d4 {[%clk 0:03:00]}  Nf6 {[%clk 0:02:59]} 2. c4 {[%clk 0:03:01]}  c5 {[%clk 0:02:59]} 3. d5 {[%clk 0:03:01]}  e6 {[%clk 0:02:59]} 4. Nc3 {[%clk 0:03:01]}  exd5 {[%clk 0:03:00]} 5. cxd5 {[%clk 0:03:01]}  d6 {[%clk 0:03:01]} 6. e4 {[%clk 0:03:02]}  g6 {[%clk 0:03:01]} 7. h3 {[%clk 0:03:02]}  Bg7 {[%clk 0:02:59]} 8. Nf3 {[%clk 0:03:02]}  O-O {[%clk 0:02:59]} 9. Bd3 {[%clk 0:03:03]}  b5 {[%clk 0:02:59]} 10. Bxb5 {[%clk 0:03:03]}  Nxe4 {[%clk 0:02:59]} 11. Nxe4 {[%clk 0:03:04]}  Qa5+ {[%clk 0:03:00]} 12. Nfd2 {[%clk 0:03:03]}  Qxb5 {[%clk 0:03:00]} 13. Nxd6 {[%clk 0:03:03]}  Qa6 {[%clk 0:02:59]} 14. N2c4 {[%clk 0:03:00]}  Nd7 {[%clk 0:02:59]} 15. O-O {[%clk 0:02:56]}  Ne5 {[%clk 0:02:59]} 16. Nxc8 {[%clk 0:02:50]}  Nxc4 {[%clk 0:02:30]} 17. Ne7+ {[%clk 0:02:49]}  Kh8 {[%clk 0:02:30]} 18. Qc2 {[%clk 0:02:43]}  Rad8 {[%clk 0:02:23]} 19. Rd1 {[%clk 0:02:38]}  Rd7 {[%clk 0:02:03]} 20. Nc6 {[%clk 0:02:33]}  Nb6 {[%clk 0:01:51]} 21. Qxc5 {[%clk 0:02:25]}  Rc8 {[%clk 0:01:51]} 22. Be3 {[%clk 0:01:57]}  Na4 {[%clk 0:01:43]} 23. Qa3 {[%clk 0:01:47]}  Bf8 {[%clk 0:00:43]} 24. Qb3 {[%clk 0:01:29]}  Rb7 {[%clk 0:00:34]} 25. Bd4+ {[%clk 0:01:28]}  Kg8 {[%clk 0:00:32]} 26. Qf3 {[%clk 0:01:25]}  Bg7 {[%clk 0:00:27]} 27. Bxg7 {[%clk 0:01:18]}  Kxg7 {[%clk 0:00:27]} 28. b3 {[%clk 0:01:14]}  Nb6 {[%clk 0:00:26]} 29. d6 {[%clk 0:00:56]}  Nd7 {[%clk 0:00:24]} 30. Ne7 {[%clk 0:00:52]}  Rc2 {[%clk 0:00:23]} 31. Rac1 {[%clk 0:00:43]}  Rxc1 {[%clk 0:00:18]} 32. Rxc1 {[%clk 0:00:44]}  Rb6 {[%clk 0:00:18]} 33. Qc3+ {[%clk 0:00:28]}  f6 {[%clk 0:00:16]} 34. Nc8 {[%clk 0:00:27]}  Rb7 {[%clk 0:00:15]} 35. a4 {[%clk 0:00:24]}  Ne5 {[%clk 0:00:13]} 36. Rc2 {[%clk 0:00:15]}  Rd7 {[%clk 0:00:12]} 37. f4 {[%clk 0:00:13]}  Nf7 {[%clk 0:00:12]} 38. Qc6 {[%clk 0:00:12]}  Qd3 {[%clk 0:00:08]} 39. Qxd7 {[%clk 0:00:10]}  Qxc2 {[%clk 0:00:08]} 40. Ne7 {[%clk 0:00:11]}  Qc1+ {[%clk 0:00:08]} 41. Kf2 {[%clk 0:00:10]}  Qxf4+ {[%clk 0:00:08]} 42. Ke2 {[%clk 0:00:10]}  Qe4+ {[%clk 0:00:06]} 43. Kd2 {[%clk 0:00:10]}  Qxg2+ {[%clk 0:00:06]} 44. Kc3 {[%clk 0:00:10]}  Qg3+ {[%clk 0:00:06]} 45. Kb4 {[%clk 0:00:10]}  Qxd6+ {[%clk 0:00:05]} 46. Qxd6 {[%clk 0:00:10]}  Nxd6 {[%clk 0:00:06]} 47. Nc6 {[%clk 0:00:08]}  Nc8 {[%clk 0:00:04]} 48. Kb5 {[%clk 0:00:07]}  f5 {[%clk 0:00:04]} 49. Ka6 {[%clk 0:00:08]}  f4 {[%clk 0:00:05]} 50. Nd4 {[%clk 0:00:07]}  Kf6 {[%clk 0:00:05]} 51. Kb7 {[%clk 0:00:07]}  Nd6+ {[%clk 0:00:05]} 52. Kxa7 {[%clk 0:00:08]}  Ke5 {[%clk 0:00:05]} 53. Nf3+ {[%clk 0:00:08]}  Ke4 {[%clk 0:00:06]} 54. Ng1 {[%clk 0:00:07]}  Kd3 {[%clk 0:00:03]} 55. b4 {[%clk 0:00:07]}  Kc4 {[%clk 0:00:04]} 56. b5 {[%clk 0:00:07]}  Nxb5+ {[%clk 0:00:03]} 57. axb5 {[%clk 0:00:08]}  Kxb5 {[%clk 0:00:04]} 58. Kb7 {[%clk 0:00:09]}  Kc5 {[%clk 0:00:05]} 59. Kc7 {[%clk 0:00:10]}  Kd4 {[%clk 0:00:05]} 60. Kd7 {[%clk 0:00:10]}  Ke3 {[%clk 0:00:06]} 61. Ke6 {[%clk 0:00:11]}  Kf2 {[%clk 0:00:07]} 62. Ke5 {[%clk 0:00:10]}  g5 {[%clk 0:00:07]} 0-1


[Site "https://www.chess.com"]

[Event "Titled Tuesday Blitz March 14 Early 2023"]
[White "Le, Tuan Minh"]
[Black "Narayanan, Srinath"]
[WhiteFideId "12401153"]
[BlackFideId "5018420"]
[WhiteElo "2558"]
[BlackElo "2438"]
[Result "1-0"]
[Round "05"]
[TimeControl "180+2"]
[Date "2023.03.14"]
[WhiteClock "0:00:03"]
[BlackClock "0:00:18"]

1. d4 {[%clk 0:02:58]}  d5 {[%clk 0:02:59]} 2. Nf3 {[%clk 0:02:53]}  Nf6 {[%clk 0:02:58]} 3. Bg5 {[%clk 0:02:53]}  Ne4 {[%clk 0:02:55]} 4. Bf4 {[%clk 0:02:52]}  c5 {[%clk 0:02:54]} 5. c3 {[%clk 0:02:52]}  Nc6 {[%clk 0:02:54]} 6. e3 {[%clk 0:02:53]}  Qb6 {[%clk 0:02:52]} 7. Nbd2 {[%clk 0:02:53]}  Qxb2 {[%clk 0:02:44]} 8. Nxe4 {[%clk 0:02:51]}  dxe4 {[%clk 0:02:45]} 9. Nd2 {[%clk 0:02:51]}  cxd4 {[%clk 0:02:37]} 10. cxd4 {[%clk 0:02:50]}  e5 {[%clk 0:02:37]} 11. Rb1 {[%clk 0:02:40]}  Qxa2 {[%clk 0:02:12]} 12. Bc4 {[%clk 0:02:39]}  Qa5 {[%clk 0:02:12]} 13. Rb5 {[%clk 0:02:02]}  Qc3 {[%clk 0:02:11]} 14. Bxe5 {[%clk 0:01:59]}  Bb4 {[%clk 0:02:03]} 15. O-O {[%clk 0:01:58]}  O-O {[%clk 0:00:53]} 16. Bxg7 {[%clk 0:00:46]}  Kxg7 {[%clk 0:00:52]} 17. Qh5 {[%clk 0:00:47]}  f5 {[%clk 0:00:34]} 18. g4 {[%clk 0:00:12]}  a6 {[%clk 0:00:30]} 19. gxf5 {[%clk 0:00:04]}  axb5 {[%clk 0:00:27]} 20. Kh1 {[%clk 0:00:04]}  bxc4 {[%clk 0:00:17]} 21. Rg1+ {[%clk 0:00:05]}  Kh8 {[%clk 0:00:18]} 22. Qg5 {[%clk 0:00:03]} 1-0


[Site "https://www.chess.com"]

[Event "Titled Tuesday Blitz March 14 Early 2023"]
[White "Makhnev, Denis"]
[Black "Cherniaiev, Tykhon"]
[WhiteFideId "13707647"]
[BlackFideId "14182360"]
[WhiteElo "2525"]
[BlackElo "2450"]
[Result "1/2-1/2"]
[Round "05"]
[TimeControl "180+2"]
[Date "2023.03.14"]
[WhiteClock "0:00:16"]
[BlackClock "0:00:09"]

1. d4 {[%clk 0:03:00]}  Nf6 {[%clk 0:02:59]} 2. c4 {[%clk 0:03:00]}  e6 {[%clk 0:02:58]} 3. Nf3 {[%clk 0:03:01]}  d5 {[%clk 0:02:57]} 4. Nc3 {[%clk 0:03:01]}  Be7 {[%clk 0:02:56]} 5. Bf4 {[%clk 0:03:01]}  O-O {[%clk 0:02:57]} 6. e3 {[%clk 0:03:01]}  c5 {[%clk 0:02:57]} 7. dxc5 {[%clk 0:03:01]}  Bxc5 {[%clk 0:02:58]} 8. Qc2 {[%clk 0:03:01]}  Nc6 {[%clk 0:02:49]} 9. Rd1 {[%clk 0:03:01]}  Re8 {[%clk 0:02:44]} 10. Be2 {[%clk 0:02:17]}  e5 {[%clk 0:01:53]} 11. Bg5 {[%clk 0:02:17]}  d4 {[%clk 0:01:52]} 12. O-O {[%clk 0:02:15]}  Bg4 {[%clk 0:01:49]} 13. Nd5 {[%clk 0:01:55]}  Be7 {[%clk 0:01:33]} 14. Bxf6 {[%clk 0:01:07]}  Bxf6 {[%clk 0:01:31]} 15. Nxd4 {[%clk 0:01:07]}  Nxd4 {[%clk 0:01:20]} 16. exd4 {[%clk 0:01:07]}  Bxe2 {[%clk 0:01:20]} 17. Qxe2 {[%clk 0:01:08]}  exd4 {[%clk 0:01:20]} 18. Qg4 {[%clk 0:01:08]}  h6 {[%clk 0:01:05]} 19. a4 {[%clk 0:01:01]}  Qd6 {[%clk 0:00:58]} 20. Nxf6+ {[%clk 0:00:47]}  Qxf6 {[%clk 0:00:59]} 21. Qxd4 {[%clk 0:00:47]}  Qxd4 {[%clk 0:00:49]} 22. Rxd4 {[%clk 0:00:48]}  Re2 {[%clk 0:00:49]} 23. b3 {[%clk 0:00:48]}  Rb2 {[%clk 0:00:45]} 24. Rd3 {[%clk 0:00:48]}  Re8 {[%clk 0:00:45]} 25. Rf3 {[%clk 0:00:45]}  Re6 {[%clk 0:00:44]} 26. g3 {[%clk 0:00:30]}  Rf6 {[%clk 0:00:25]} 27. Re3 {[%clk 0:00:30]}  Rb6 {[%clk 0:00:23]} 28. Rd1 {[%clk 0:00:24]}  R6xb3 {[%clk 0:00:22]} 29. Rd8+ {[%clk 0:00:17]}  Kh7 {[%clk 0:00:22]} 30. Rxb3 {[%clk 0:00:18]}  Rxb3 {[%clk 0:00:22]} 31. Rd7 {[%clk 0:00:19]}  f6 {[%clk 0:00:16]} 32. a5 {[%clk 0:00:17]}  Ra3 {[%clk 0:00:10]} 33. Rxb7 {[%clk 0:00:17]}  Rxa5 {[%clk 0:00:10]} 34. Rc7 {[%clk 0:00:18]}  Ra1+ {[%clk 0:00:10]} 35. Kg2 {[%clk 0:00:18]}  a5 {[%clk 0:00:11]} 36. Kf3 {[%clk 0:00:19]}  a4 {[%clk 0:00:12]} 37. Ra7 {[%clk 0:00:11]}  a3 {[%clk 0:00:11]} 38. h4 {[%clk 0:00:11]}  a2 {[%clk 0:00:10]} 39. h5 {[%clk 0:00:11]}  Rc1 {[%clk 0:00:11]} 40. Rxa2 {[%clk 0:00:11]}  Rxc4 {[%clk 0:00:11]} 41. Ra5 {[%clk 0:00:12]}  Rb4 {[%clk 0:00:11]} 42. g4 {[%clk 0:00:11]}  Rc4 {[%clk 0:00:10]} 43. Kg3 {[%clk 0:00:11]}  Rb4 {[%clk 0:00:10]} 44. f3 {[%clk 0:00:11]}  Rc4 {[%clk 0:00:10]} 45. Rf5 {[%clk 0:00:11]}  Rb4 {[%clk 0:00:10]} 46. Rf4 {[%clk 0:00:12]}  Rb3 {[%clk 0:00:10]} 47. Rc4 {[%clk 0:00:12]}  Ra3 {[%clk 0:00:11]} 48. Kf4 {[%clk 0:00:12]}  Rb3 {[%clk 0:00:11]} 49. Ke4 {[%clk 0:00:11]}  Ra3 {[%clk 0:00:07]} 50. Rc5 {[%clk 0:00:12]}  Rb3 {[%clk 0:00:06]} 51. f4 {[%clk 0:00:12]}  Rb4+ {[%clk 0:00:04]} 52. Kf5 {[%clk 0:00:13]}  Rb6 {[%clk 0:00:05]} 53. Rd5 {[%clk 0:00:12]}  Rc6 {[%clk 0:00:05]} 54. Rd4 {[%clk 0:00:10]}  Rb6 {[%clk 0:00:04]} 55. Ke4 {[%clk 0:00:10]}  Ra6 {[%clk 0:00:04]} 56. Kd5 {[%clk 0:00:10]}  Rb6 {[%clk 0:00:04]} 57. Rc4 {[%clk 0:00:09]}  Ra6 {[%clk 0:00:04]} 58. Rb4 {[%clk 0:00:08]}  Kg8 {[%clk 0:00:03]} 59. Ke4 {[%clk 0:00:09]}  Kh7 {[%clk 0:00:03]} 60. Rb5 {[%clk 0:00:09]}  Ra4+ {[%clk 0:00:03]} 61. Kf5 {[%clk 0:00:09]}  Ra6 {[%clk 0:00:04]} 62. Rc5 {[%clk 0:00:10]}  Rb6 {[%clk 0:00:04]} 63. Ra5 {[%clk 0:00:10]}  Rc6 {[%clk 0:00:04]} 64. Ra4 {[%clk 0:00:11]}  Rb6 {[%clk 0:00:04]} 65. Ke4 {[%clk 0:00:10]}  Kg8 {[%clk 0:00:03]} 66. Kd5 {[%clk 0:00:10]}  Kh7 {[%clk 0:00:04]} 67. Kc5 {[%clk 0:00:10]}  Re6 {[%clk 0:00:04]} 68. Rd4 {[%clk 0:00:10]}  Ra6 {[%clk 0:00:04]} 69. Kd5 {[%clk 0:00:10]}  Kg8 {[%clk 0:00:04]} 70. Re4 {[%clk 0:00:10]}  Kh7 {[%clk 0:00:04]} 71. Rb4 {[%clk 0:00:09]}  Kg8 {[%clk 0:00:04]} 72. Ke4 {[%clk 0:00:10]}  Kh7 {[%clk 0:00:05]} 73. Kf5 {[%clk 0:00:11]}  Rc6 {[%clk 0:00:05]} 74. Ra4 {[%clk 0:00:10]}  Rb6 {[%clk 0:00:05]} 75. Ra5 {[%clk 0:00:11]}  Rc6 {[%clk 0:00:05]} 76. g5 {[%clk 0:00:11]}  hxg5 {[%clk 0:00:05]} 77. fxg5 {[%clk 0:00:12]}  fxg5 {[%clk 0:00:06]} 78. Kxg5 {[%clk 0:00:13]}  Rc1 {[%clk 0:00:07]} 79. Rb5 {[%clk 0:00:13]}  Rg1+ {[%clk 0:00:07]} 80. Kh4 {[%clk 0:00:14]}  Rh1+ {[%clk 0:00:07]} 81. Kg4 {[%clk 0:00:15]}  Rg1+ {[%clk 0:00:08]} 82. Kh4 {[%clk 0:00:15]}  Rh1+ {[%clk 0:00:08]} 83. Kg4 {[%clk 0:00:16]}  Rg1+ {[%clk 0:00:09]} 84. Kh4 {[%clk 0:00:16]} 1/2-1/2


[Site "https://www.chess.com"]

[Event "Titled Tuesday Blitz March 14 Early 2023"]
[White "Csonka, Balazs"]
[Black "Zhigalko, Sergei"]
[WhiteFideId "742910"]
[BlackFideId "13502956"]
[WhiteElo "2404"]
[BlackElo "2626"]
[Result "1/2-1/2"]
[Round "05"]
[TimeControl "180+2"]
[Date "2023.03.14"]
[WhiteClock "0:00:43"]
[BlackClock "0:00:11"]

1. d4 {[%clk 0:03:00]}  Nf6 {[%clk 0:02:59]} 2. c4 {[%clk 0:02:59]}  e6 {[%clk 0:02:59]} 3. g3 {[%clk 0:02:59]}  c5 {[%clk 0:02:59]} 4. Nf3 {[%clk 0:02:56]}  cxd4 {[%clk 0:02:59]} 5. Nxd4 {[%clk 0:02:57]}  Qc7 {[%clk 0:02:58]} 6. Nc3 {[%clk 0:02:56]}  a6 {[%clk 0:02:58]} 7. Bg2 {[%clk 0:02:56]}  Qxc4 {[%clk 0:02:58]} 8. Bf4 {[%clk 0:02:55]}  Nc6 {[%clk 0:02:54]} 9. Nb3 {[%clk 0:02:55]}  d5 {[%clk 0:02:52]} 10. Rc1 {[%clk 0:02:49]}  Qb4 {[%clk 0:02:42]} 11. O-O {[%clk 0:02:49]}  Be7 {[%clk 0:02:36]} 12. a3 {[%clk 0:02:27]}  Qb6 {[%clk 0:02:35]} 13. e4 {[%clk 0:02:27]}  Nxe4 {[%clk 0:02:34]} 14. Nxe4 {[%clk 0:02:28]}  dxe4 {[%clk 0:02:34]} 15. Bxe4 {[%clk 0:02:28]}  O-O {[%clk 0:02:32]} 16. Qc2 {[%clk 0:02:12]}  h6 {[%clk 0:02:20]} 17. Rfd1 {[%clk 0:02:09]}  Rd8 {[%clk 0:02:03]} 18. Rxd8+ {[%clk 0:01:43]}  Qxd8 {[%clk 0:01:52]} 19. Bxc6 {[%clk 0:01:25]}  bxc6 {[%clk 0:01:53]} 20. Qxc6 {[%clk 0:01:25]}  Bd7 {[%clk 0:01:53]} 21. Qb7 {[%clk 0:01:19]}  Ba4 {[%clk 0:01:38]} 22. Na5 {[%clk 0:00:53]}  Bf6 {[%clk 0:01:23]} 23. Nc6 {[%clk 0:00:43]}  Bxc6 {[%clk 0:01:15]} 24. Rxc6 {[%clk 0:00:44]}  Qd1+ {[%clk 0:01:07]} 25. Kg2 {[%clk 0:00:44]}  Qd5+ {[%clk 0:01:08]} 26. Kg1 {[%clk 0:00:43]}  Qd1+ {[%clk 0:00:21]} 27. Kg2 {[%clk 0:00:43]}  Qd5+ {[%clk 0:00:19]} 28. Kg1 {[%clk 0:00:43]}  Qd1+ {[%clk 0:00:11]} 1/2-1/2


[Site "https://www.chess.com"]